[Event "ESTCC 65 2019"]
[Site "Mali Losinj"]
[Date "2019.09.25"]
[Round "8.28"]
[White "Ristoja, Aulikki"]
[Black "Strobel, Ferdinand"]
[Result "0-1"]
[ECO "A86"]
[WhiteElo "1558"]
[BlackElo "1956"]
[Annotator "NA"]
[PlyCount "72"]
[EventDate "2019.09.18"]
[EventType "team-tourn"]
[EventCountry "CRO"]
[SourceTitle "playchess.com"]
[Source "ChessBase"]
[SourceQuality "1"]
[WhiteTeam "Finland"]
[BlackTeam "Austria"]
[WhiteTeamCountry "FIN"]
[BlackTeamCountry "AUT"]
[TimeControl "40/5400+30:1800+30"]

1. d4 {[%emt 0:00:30]} f5 {[%emt 0:00:30]} 2. g3 {[%emt 0:00:30]} g6 {[%emt 0:00:00]} 3. Bg2 {[%emt 0:00:00]} Bg7 {[%emt 0:00:00]} 4. c4 {[%emt 0:01:00]} Nf6 {[%emt 0:00:30]} 5. Nc3 {[%emt 0:00:30]} O-O {[%emt 0:01:30]} 6. h4 {[%emt 0:03:30]} c6 {[%emt 0:07:30]} 7. Nh3 {[%emt 0:00:30]} d6 {[%emt 0:01:30]} 8. d5 {[%emt 0:03:30]} e5 {[%emt 0:03:30]} 9. Bg5 {[%emt 0:04:30]} h6 {[%emt 0:04:30]} 10. Bxf6 {[%emt 0:03:30]} Qxf6 {[%emt 0:02:30]} 11. Qd2 {[%emt 0:01:30]} c5 {[%emt 0:03:30]} 12. Nb5 {[%emt 0:03:30]} Qe7 {[%emt 0:06:30]} 13. O-O {[%emt 0:07:30]} Na6 {[%emt 0:06:30]} 14. a3 {[%emt 0:01:30]} Nc7 {[%emt 0:04:30]} 15. Nc3 {[%emt 0:00:30]} Bd7 {[%emt 0:07:30]} 16. a4 {[%emt 0:05:30]} a5 {[%emt 0:06:30]} 17. e3 {[%emt 0:04:30]} g5 {[%emt 0:03:30]} 18. hxg5 {[%emt 0:01:30]} hxg5 {[%emt 0:00:30]} 19. f4 {[%emt 0:01:30]} exf4 {[%emt 0:05:30]} 20. gxf4 {[%emt 0:01:30]} g4 {[%emt 0:00:30]} 21. Nf2 {[%emt 0:03:30]} Na6 {[%emt 0:13:30]} 22. Nh1 {[%emt 0:04:30]} Nb4 {[%emt 0:00:41]} 23. Ne2 {[%emt 0:05:30]} Rae8 {[%emt 0:04:54]} 24. Ra3 {[%emt 0:03:30]} Kf7 {[%emt 0:02:41]} 25. Re1 {[%emt 0:02:30]} Qf6 {[%emt 0:01:29]} 26. Nc3 {[%emt 0:04:30]} Qh4 {[%emt 0:03:04]} 27. Nb5 {[%emt 0:03:30]} Bxb5 {[%emt 0:00:35]} 28. axb5 {[%emt 0:00:00]} Nc2 {[%emt 0:00:12]} 29. Re2 {[%emt 0:02:00]} Nxa3 {[%emt 0:00:57]} 30. bxa3 {[%emt 0:00:30]} b6 {[%emt 0:01:28]} 31. Bf1 {[%emt 0:01:30]} Rh8 {[%emt 0:00:21]} 32. Rg2 {[%emt 0:07:30]} Qxh1+ {[%emt 0:00:27]} 33. Kf2 {[%emt 0:00:00]} Qh4+ {[%emt 0:00:33]} 34. Ke2 {[%emt 0:00:00]} Bd4 {[%emt 0:00:40]} 35. Qc2 {[%emt 0:00:30]} Rxe3+ {[%emt 0:00:14]} 36. Kd2 {[%emt 0:01:30]} Qe1# {[%emt 0:01:20]} 0-1

[Event "ESTCC 65 2019"]
[Site "Mali Losinj"]
[Date "2019.09.25"]
[Round "8.29"]
[White "Kolbak, Jens"]
[Black "Vadlja, Stjepan"]
[Result "1-0"]
[ECO "C62"]
[WhiteElo "2173"]
[BlackElo "1636"]
[Annotator "NA"]
[PlyCount "72"]
[EventDate "2019.09.18"]
[EventType "team-tourn"]
[EventCountry "CRO"]
[SourceTitle "playchess.com"]
[Source "ChessBase"]
[SourceQuality "1"]
[WhiteTeam "Denmark"]
[BlackTeam "Croatia"]
[WhiteTeamCountry "DEN"]
[BlackTeamCountry "CRO"]
[TimeControl "40/5400+30:1800+30"]

1. e4 {[%emt 0:00:30]} e5 {[%emt 0:00:30]} 2. Nf3 {[%emt 0:00:00]} Nc6 {[%emt 0:00:30]} 3. Bb5 {[%emt 0:00:00]} d6 {[%emt 0:01:30]} 4. d4 {[%emt 0:00:30]} exd4 {[%emt 0:00:30]} 5. Nxd4 {[%emt 0:00:30]} Bd7 {[%emt 0:02:30]} 6. O-O {[%emt 0:02:30]} Nxd4 {[%emt 0:00:30]} 7. Bxd7+ {[%emt 0:00:30]} Qxd7 {[%emt 0:00:30]} 8. Qxd4 {[%emt 0:00:30]} Ne7 {[%emt 0:01:30]} 9. Nc3 {[%emt 0:01:30]} Nc6 {[%emt 0:00:30]} 10. Qd3 {[%emt 0:10:30]} Be7 {[%emt 0:01:30]} 11. Nd5 {[%emt 0:01:30]} O-O {[%emt 0:00:30]} 12. Bd2 {[%emt 0:00:30]} Ne5 {[%emt 0:02:30]} 13. Qg3 {[%emt 0:01:30]} Bd8 {[%emt 0:00:30]} 14. Bc3 {[%emt 0:00:30]} Qe6 {[%emt 0:01:30]} 15. f4 {[%emt 0:12:30]} c6 {[%emt 0:01:30]} 16. fxe5 {[%emt 0:02:30]} cxd5 {[%emt 0:00:30]} 17. exd5 {[%emt 0:02:30]} Qxd5 {[%emt 0:01:30]} 18. exd6 {[%emt 0:00:30]} Qg5 {[%emt 0:00:30]} 19. Rf3 {[%emt 0:05:30]} Qxg3 {[%emt 0:01:30]} 20. Rxg3 {[%emt 0:00:30]} g6 {[%emt 0:00:30]} 21. Rd1 {[%emt 0:06:30]} f5 {[%emt 0:04:30]} 22. Bd4 {[%emt 0:06:30]} Rf7 {[%emt 0:00:30]} 23. c4 {[%emt 0:00:30]} b6 {[%emt 0:00:30]} 24. Be5 {[%emt 0:07:30]} Rd7 {[%emt 0:01:30]} 25. b4 {[%emt 0:03:30]} Rc8 {[%emt 0:00:00]} 26. Rc3 {[%emt 0:00:30]} Kf7 {[%emt 0:00:00]} 27. Kf1 {[%emt 0:01:30]} Ke6 {[%emt 0:00:30]} 28. Re1 {[%emt 0:00:30]} Kf7 {[%emt 0:00:30]} 29. g3 {[%emt 0:02:30]} Bg5 {[%emt 0:00:30]} 30. Re2 {[%emt 0:00:30]} Re8 {[%emt 0:03:30]} 31. c5 {[%emt 0:05:30]} Rxe5 {[%emt 0:12:30]} 32. Rxe5 {[%emt 0:00:30]} Bf6 {[%emt 0:00:00]} 33. c6 {[%emt 0:02:30]} Bxe5 {[%emt 0:00:00]} 34. cxd7 {[%emt 0:00:30]} Bf6 {[%emt 0:00:30]} 35. Rc8 {[%emt 0:01:30]} Ke6 {[%emt 0:00:30]} 36. d8=Q {[%emt 0:00:00]} Kd5 {[%emt 0:01:30]} 1-0

[Event "ESTCC 65 2019"]
[Site "Mali Losinj"]
[Date "2019.09.25"]
[Round "8.31"]
[White "Mortensen, Steen Juul"]
[Black "Novak, Stjepan"]
[Result "1-0"]
[ECO "D40"]
[WhiteElo "1892"]
[BlackElo "1503"]
[Annotator "NA"]
[PlyCount "113"]
[EventDate "2019.09.18"]
[EventType "team-tourn"]
[EventCountry "CRO"]
[SourceTitle "playchess.com"]
[Source "ChessBase"]
[SourceQuality "1"]
[WhiteTeam "Denmark"]
[BlackTeam "Croatia"]
[WhiteTeamCountry "DEN"]
[BlackTeamCountry "CRO"]
[TimeControl "40/5400+30:1800+30"]

1. d4 {[%emt 0:00:30]} c5 {[%emt 0:00:30]} 2. e3 {[%emt 0:00:00]} e6 {[%emt 0:00:30]} 3. Nf3 {[%emt 0:00:00]} Nf6 {[%emt 0:00:30]} 4. c4 {[%emt 0:00:00]} Nc6 {[%emt 0:01:30]} 5. Nc3 {[%emt 0:01:00]} d5 {[%emt 0:04:30]} 6. Bd3 {[%emt 0:02:30]} cxd4 {[%emt 0:03:30]} 7. exd4 {[%emt 0:00:30]} Be7 {[%emt 0:00:30]} 8. O-O {[%emt 0:00:30]} O-O {[%emt 0:00:30]} 9. Re1 {[%emt 0:03:30]} dxc4 {[%emt 0:03:30]} 10. Bxc4 {[%emt 0:00:30]} Bb4 {[%emt 0:01:30]} 11. a3 {[%emt 0:05:30]} Bxc3 {[%emt 0:02:30]} 12. bxc3 {[%emt 0:01:30]} Na5 {[%emt 0:01:30]} 13. Bd3 {[%emt 0:02:30]} h6 {[%emt 0:03:30]} 14. Qe2 {[%emt 0:03:30]} Bd7 {[%emt 0:03:30]} 15. Bb2 {[%emt 0:05:30]} Rc8 {[%emt 0:05:30]} 16. c4 {[%emt 0:15:30]} b6 {[%emt 0:04:30]} 17. Nd2 {[%emt 0:04:30]} Bc6 {[%emt 0:03:30]} 18. Bc3 {[%emt 0:06:30]} Nb7 {[%emt 0:04:30]} 19. Bb4 {[%emt 0:04:30]} Re8 {[%emt 0:07:30]} 20. Qe5 {[%emt 0:05:30]} Ng4 {[%emt 0:04:30]} 21. Qf4 {[%emt 0:01:30]} Qg5 {[%emt 0:01:30]} 22. Qxg5 {[%emt 0:02:30]} hxg5 {[%emt 0:00:00]} 23. Ne4 {[%emt 0:06:30]} f6 {[%emt 0:08:00]} 24. h3 {[%emt 0:02:30]} Nh6 {[%emt 0:00:00]} 25. g4 {[%emt 0:01:30]} Nf7 {[%emt 0:00:00]} 26. Rac1 {[%emt 0:05:38]} Bxe4 {[%emt 0:01:30]} 27. Bxe4 {[%emt 0:02:23]} Nbd6 {[%emt 0:00:30]} 28. Bd3 {[%emt 0:00:40]} Nb7 {[%emt 0:00:30]} 29. Bd2 {[%emt 0:03:37]} Nbd6 {[%emt 0:01:30]} 30. c5 {[%emt 0:01:42]} bxc5 {[%emt 0:01:30]} 31. dxc5 {[%emt 0:00:15]} Nb7 {[%emt 0:01:30]} 32. c6 {[%emt 0:01:57]} Nbd8 {[%emt 0:02:30]} 33. c7 {[%emt 0:01:04]} Ne5 {[%emt 0:00:30]} 34. cxd8=Q {[%emt 0:00:45]} Nf3+ {[%emt 0:00:30]} 35. Kg2 {[%emt 0:03:03]} Nxe1+ {[%emt 0:00:30]} 36. Rxe1 {[%emt 0:00:21]} Rcxd8 {[%emt 0:00:30]} 37. Bb5 {[%emt 0:00:34]} Rxd2 {[%emt 0:02:30]} 38. Bxe8 {[%emt 0:00:14]} e5 {[%emt 0:00:30]} 39. Re3 {[%emt 0:02:40]} Kf8 {[%emt 0:04:30]} 40. Bg6 {[%emt 0:00:18]} Ke7 {[%emt 0:00:30]} 41. Bf5 {[%emt 0:31:03]} Rd4 {[%emt 0:30:30]} 42. Rd3 {[%emt 0:02:10]} Rxd3 {[%emt 0:02:30]} 43. Bxd3 {[%emt 0:00:04]} Kd6 {[%emt 0:00:30]} 44. Kf3 {[%emt 0:01:45]} Kd5 {[%emt 0:00:30]} 45. Ke3 {[%emt 0:00:12]} a5 {[%emt 0:00:30]} 46. a4 {[%emt 0:01:33]} e4 {[%emt 0:12:42]} 47. Bxe4+ {[%emt 0:00:10]} Ke5 {[%emt 0:00:05]} 48. f3 {[%emt 0:00:28]} Ke6 {[%emt 0:01:41]} 49. Kd4 {[%emt 0:00:07]} Kd6 {[%emt 0:00:20]} 50. Kc4 {[%emt 0:00:32]} Ke5 {[%emt 0:00:17]} 51. Kb5 {[%emt 0:00:53]} Kf4 {[%emt 0:00:59]} 52. Kxa5 {[%emt 0:00:10]} Kg3 {[%emt 0:00:03]} 53. Kb4 {[%emt 0:00:35]} Kxh3 {[%emt 0:00:44]} 54. a5 {[%emt 0:00:30]} Kg3 {[%emt 0:00:02]} 55. a6 {[%emt 0:00:17]} g6 {[%emt 0:00:05]} 56. Bxg6 {[%emt 0:00:00]} Kxf3 {[%emt 0:00:00]} 57. Bf5 {[%emt 0:00:00]} 1-0

[Event "ESTCC 65 2019"]
[Site "Mali Losinj"]
[Date "2019.09.25"]
[Round "8.32"]
[White "Petanjek, Zvonko"]
[Black "Andersson, Finn"]
[Result "1/2-1/2"]
[ECO "B20"]
[WhiteElo "1650"]
[BlackElo "1771"]
[Annotator "NA"]
[PlyCount "61"]
[EventDate "2019.09.18"]
[EventType "team-tourn"]
[EventCountry "CRO"]
[SourceTitle "playchess.com"]
[Source "ChessBase"]
[SourceQuality "1"]
[WhiteTeam "Croatia"]
[BlackTeam "Denmark"]
[WhiteTeamCountry "CRO"]
[BlackTeamCountry "DEN"]
[TimeControl "40/5400+30:1800+30"]

1. e4 {[%emt 0:00:30]} c5 {[%emt 0:00:30]} 2. Nc3 {[%emt 0:00:00]} Nc6 {[%emt 0:00:00]} 3. Bc4 {[%emt 0:00:00]} e6 {[%emt 0:03:00]} 4. d3 {[%emt 0:00:30]} g6 {[%emt 0:01:30]} 5. a3 {[%emt 0:02:30]} Bg7 {[%emt 0:00:30]} 6. Rb1 {[%emt 0:00:30]} Nge7 {[%emt 0:00:30]} 7. Nf3 {[%emt 0:01:30]} O-O {[%emt 0:00:30]} 8. Bd2 {[%emt 0:00:00]} a6 {[%emt 0:03:30]} 9. O-O {[%emt 0:00:00]} b5 {[%emt 0:00:30]} 10. Ba2 {[%emt 0:00:30]} Qc7 {[%emt 0:03:30]} 11. Ne2 {[%emt 0:01:30]} Bb7 {[%emt 0:05:30]} 12. Bf4 {[%emt 0:13:30]} e5 {[%emt 0:03:30]} 13. Be3 {[%emt 0:00:30]} Nd4 {[%emt 0:02:30]} 14. Nexd4 {[%emt 0:01:30]} cxd4 {[%emt 0:01:30]} 15. Bd2 {[%emt 0:00:00]} d6 {[%emt 0:13:30]} 16. Rc1 {[%emt 0:03:00]} Qd7 {[%emt 0:01:30]} 17. Bg5 {[%emt 0:02:30]} Nc6 {[%emt 0:08:30]} 18. Qd2 {[%emt 0:01:30]} Nd8 {[%emt 0:02:30]} 19. c3 {[%emt 0:04:30]} d5 {[%emt 0:02:30]} 20. exd5 {[%emt 0:01:30]} Bxd5 {[%emt 0:00:30]} 21. Bxd5 {[%emt 0:00:30]} Qxd5 {[%emt 0:00:30]} 22. cxd4 {[%emt 0:00:30]} exd4 {[%emt 0:00:00]} 23. Bh6 {[%emt 0:01:30]} Ne6 {[%emt 0:01:00]} 24. Bxg7 {[%emt 0:00:30]} Kxg7 {[%emt 0:00:30]} 25. Rc2 {[%emt 0:00:30]} Rac8 {[%emt 0:13:30]} 26. Rfc1 {[%emt 0:00:30]} Rc5 {[%emt 0:04:30]} 27. Rxc5 {[%emt 0:01:30]} Nxc5 {[%emt 0:00:00]} 28. Re1 {[%emt 0:06:30]} Ne6 {[%emt 0:05:00]} 29. Rc1 {[%emt 0:01:30]} Nc5 {[%emt 0:02:30]} 30. Re1 {[%emt 0:00:30]} Ne6 {[%emt 0:04:31]} 31. Rc1 {[%emt 0:01:30]} 1/2-1/2

[Event "ESTCC 65 2019"]
[Site "Mali Losinj"]
[Date "2019.09.26"]
[Round "9.1"]
[White "Rooze, Jan"]
[Black "Balashov, Yuri S"]
[Result "0-1"]
[ECO "B52"]
[WhiteElo "2281"]
[BlackElo "2466"]
[Annotator "ChessBase"]
[PlyCount "128"]
[EventDate "2019.09.18"]
[EventType "team-tourn"]
[EventCountry "CRO"]
[SourceTitle "playchess.com"]
[Source "ChessBase"]
[SourceQuality "1"]
[WhiteTeam "Belgium"]
[BlackTeam "Russia"]
[WhiteTeamCountry "BEL"]
[BlackTeamCountry "RUS"]
[TimeControl "40/5400+30:1800+30"]

1. e4 {[%emt 0:00:30]} c5 {[%emt 0:00:30]} 2. Nf3 {[%emt 0:00:00]} d6 {[%emt 0:00:00]} 3. Bb5+ {[%emt 0:00:00]} Bd7 {[%emt 0:01:00]} 4. Bxd7+ {[%emt 0:00:00]} Nxd7 {[%emt 0:00:00]} 5. O-O {[%emt 0:00:00]} Ngf6 {[%emt 0:03:00]} 6. Qe2 {[%emt 0:00:30]} e6 {[%emt 0:00:30]} 7. b3 {[%emt 0:04:30]} Be7 {[%emt 0:03:30]} 8. Bb2 {[%emt 0:01:30]} O-O {[%emt 0:00:30]} 9. c4 {[%emt 0:01:30]} Re8 {[%emt 0:04:30]} 10. Nc3 {[%emt 0:10:30]} Ne5 {[%emt 0:04:30]} 11. Rad1 {[%emt 0:01:30]} a6 {[%emt 0:16:30]} 12. d4 {[%emt 0:01:30]} cxd4 {[%emt 0:03:30]} 13. Nxd4 {[%emt 0:00:30]} Qb6 {[%emt 0:03:30]} 14. Kh1 {[%emt 0:01:30]} Nc6 {[%emt 0:01:30]} 15. Nxc6 {[%emt 0:17:30]} Qxc6 {[%emt 0:01:30]} 16. Rd3 {[%emt 0:07:30]} b5 {[%emt 0:02:30]} 17. f4 {[%emt 0:13:30]} bxc4 {[%emt 0:04:30]} 18. bxc4 {[%emt 0:02:30]} Qxc4 {[%emt 0:09:30]} 19. e5 {[%emt 0:00:30]} Nd5 {[%emt 0:03:30]} 20. exd6 {[%emt 0:04:30]} Bxd6 {[%emt 0:05:30]} 21. Ne4 {[%emt 0:02:30]} Bf8 {[%emt 0:05:30]} 22. Rc1 {[%emt 0:02:30]} Qb5 {[%emt 0:02:30]} 23. a4 {[%emt 0:01:30]} Nxf4 {[%emt 0:04:28]} 24. Nf6+ {[%emt 0:06:52]} Kh8 {[%emt 0:01:40]} 25. axb5 {[%emt 0:00:29]} Nxe2 {[%emt 0:00:23]} 26. Nxe8 {[%emt 0:01:16]} Nxc1 {[%emt 0:00:12]} 27. Bxc1 {[%emt 0:00:14]} axb5 {[%emt 0:08:16]} 28. Nd6 {[%emt 0:01:48]} Ra1 {[%emt 0:03:35]} 29. Rc3 {[%emt 0:00:19]} b4 {[%emt 0:00:44]} 30. Rc8 {[%emt 0:04:14]} Kg8 {[%emt 0:00:05]} 31. g3 {[%emt 0:02:08]} Rxc1+ {[%emt 0:01:11]} 32. Rxc1 {[%emt 0:00:07]} Bxd6 {[%emt 0:00:04]} 33. Rc8+ {[%emt 0:00:14]} Bf8 {[%emt 0:00:05]} 34. Kg2 {[%emt 0:00:14]} h5 {[%emt 0:00:53]} 35. Kf3 {[%emt 0:02:18]} f6 {[%emt 0:02:24]} 36. h3 {[%emt 0:00:45]} Kf7 {[%emt 0:01:02]} 37. g4 {[%emt 0:00:46]} hxg4+ {[%emt 0:00:18]} 38. hxg4 {[%emt 0:00:12]} Bd6 {[%emt 0:00:49]} 39. Ra8 {[%emt 0:05:23]} f5 {[%emt 0:02:21]} 40. Ra6 {[%emt 0:01:53]} Be5 {[%emt 0:00:23]} 41. Rb6 {[%emt 0:30:20]} Bc3 {[%emt 0:30:17]} 42. gxf5 {[%emt 0:02:39]} exf5 {[%emt 0:01:28]} 43. Kf4 {[%emt 0:00:13]} g6 {[%emt 0:00:14]} 44. Rb7+ {[%emt 0:00:20]} Kf6 {[%emt 0:00:14]} 45. Rb6+ {[%emt 0:00:01]} Kg7 {[%emt 0:00:00]} 46. Rb7+ {[%emt 0:00:00]} Kh6 {[%emt 0:00:00]} 47. Rb6 {[%emt 0:00:00]} Kh5 {[%emt 0:00:00]} 48. Rb5 {[%emt 0:00:00]} Kh4 {[%emt 0:00:00]} 49. Rb6 {[%emt 0:00:00]} Bd2+ {[%emt 0:00:00]} 50. Kf3 {[%emt 0:00:00]} Kg5 {[%emt 0:00:00]} 51. Rd6 {[%emt 0:00:00]} Bc3 {[%emt 0:00:00]} 52. Rb6 {[%emt 0:00:00]} Kh6 {[%emt 0:00:00]} 53. Rb5 {[%emt 0:00:00]} Kg7 {[%emt 0:00:00]} 54. Rb7+ {[%emt 0:00:00]} Kf6 {[%emt 0:00:00]} 55. Rb6+ {[%emt 0:00:00]} Kf7 {[%emt 0:00:00]} 56. Kf4 {[%emt 0:00:00]} Bd2+ {[%emt 0:00:00]} 57. Ke5 {[%emt 0:00:00]} Kg7 {[%emt 0:00:00]} 58. Ke6 {[%emt 0:02:05]} f4 {[%emt 0:00:00]} 59. Rd6 {[%emt 0:05:08]} Bc3 {[%emt 0:00:00]} 60. Rd3 {[%emt 0:01:17]} Kh6 {[%emt 0:00:00]} 61. Kd5 {[%emt 0:00:20]} Kh5 {[%emt 0:00:00]} 62. Ke4 {[%emt 0:00:13]} g5 {[%emt 0:00:00]} 63. Kf5 {[%emt 0:01:17]} Kh4 {[%emt 0:00:00]} 64. Rd7 {[%emt 0:00:20]} f3 {[%emt 0:00:00]} 0-1

[Event "ESTCC 65 2019"]
[Site "Mali Losinj"]
[Date "2019.09.26"]
[Round "9.2"]
[White "Kalegin, Evgenij"]
[Black "Van Herck, Marcel"]
[Result "1-0"]
[ECO "B17"]
[WhiteElo "2435"]
[BlackElo "2088"]
[Annotator "NA"]
[PlyCount "45"]
[EventDate "2019.09.18"]
[EventType "team-tourn"]
[EventCountry "CRO"]
[SourceTitle "playchess.com"]
[Source "ChessBase"]
[SourceQuality "1"]
[WhiteTeam "Russia"]
[BlackTeam "Belgium"]
[WhiteTeamCountry "RUS"]
[BlackTeamCountry "BEL"]
[TimeControl "40/5400+30:1800+30"]

1. e4 {[%emt 0:00:30]} c6 {[%emt 0:00:30]} 2. d4 {[%emt 0:00:00]} d5 {[%emt 0:00:30]} 3. Nc3 {[%emt 0:00:00]} dxe4 {[%emt 0:00:00]} 4. Nxe4 {[%emt 0:00:00]} Nd7 {[%emt 0:00:00]} 5. Ng5 {[%emt 0:00:00]} h6 {[%emt 0:00:30]} 6. Ne6 {[%emt 0:00:30]} Qb6 {[%emt 0:00:30]} 7. Bd2 {[%emt 0:10:30]} Ngf6 {[%emt 0:01:30]} 8. Bd3 {[%emt 0:02:30]} fxe6 {[%emt 0:06:30]} 9. Bg6+ {[%emt 0:00:30]} Kd8 {[%emt 0:00:30]} 10. Nf3 {[%emt 0:00:00]} e5 {[%emt 0:06:30]} 11. dxe5 {[%emt 0:14:00]} e6 {[%emt 0:00:30]} 12. exf6 {[%emt 0:00:30]} gxf6 {[%emt 0:00:30]} 13. O-O {[%emt 0:09:30]} Bd6 {[%emt 0:02:30]} 14. Bc3 {[%emt 0:06:30]} Ke7 {[%emt 0:00:30]} 15. Re1 {[%emt 0:00:30]} Nf8 {[%emt 0:10:30]} 16. Nh4 {[%emt 0:02:30]} e5 {[%emt 0:00:30]} 17. Bf5 {[%emt 0:03:30]} Bc5 {[%emt 0:04:30]} 18. Qf3 {[%emt 0:01:30]} Bd4 {[%emt 0:01:30]} 19. Bxc8 {[%emt 0:03:30]} Bxc3 {[%emt 0:00:30]} 20. Nf5+ {[%emt 0:10:30]} Kd8 {[%emt 0:03:30]} 21. bxc3 {[%emt 0:00:00]} Kxc8 {[%emt 0:00:30]} 22. Nd6+ {[%emt 0:00:00]} Kc7 {[%emt 0:00:30]} 23. Rab1 {[%emt 0:01:30]} 1-0

[Event "ESTCC 65 2019"]
[Site "Mali Losinj"]
[Date "2019.09.26"]
[Round "9.3"]
[White "Van de Wynkele, Herman"]
[Black "Zhelnin, Vladimir V"]
[Result "0-1"]
[ECO "B99"]
[WhiteElo "2085"]
[BlackElo "2406"]
[Annotator "NA"]
[PlyCount "101"]
[EventDate "2019.09.18"]
[EventType "team-tourn"]
[EventCountry "CRO"]
[SourceTitle "playchess.com"]
[Source "ChessBase"]
[SourceQuality "1"]
[WhiteTeam "Belgium"]
[BlackTeam "Russia"]
[WhiteTeamCountry "BEL"]
[BlackTeamCountry "RUS"]
[TimeControl "40/5400+30:1800+30"]

1. e4 {[%emt 0:00:30]} c5 {[%emt 0:00:30]} 2. Nf3 {[%emt 0:00:00]} d6 {[%emt 0:00:30]} 3. d4 {[%emt 0:00:00]} cxd4 {[%emt 0:00:30]} 4. Nxd4 {[%emt 0:00:30]} Nf6 {[%emt 0:00:00]} 5. Nc3 {[%emt 0:00:00]} a6 {[%emt 0:00:00]} 6. Bg5 {[%emt 0:00:00]} e6 {[%emt 0:02:30]} 7. f4 {[%emt 0:00:00]} Be7 {[%emt 0:05:30]} 8. Qf3 {[%emt 0:02:00]} Qc7 {[%emt 0:01:30]} 9. O-O-O {[%emt 0:00:00]} Nbd7 {[%emt 0:01:30]} 10. f5 {[%emt 0:07:00]} e5 {[%emt 0:06:30]} 11. Nde2 {[%emt 0:06:30]} b5 {[%emt 0:02:30]} 12. Bxf6 {[%emt 0:06:30]} Nxf6 {[%emt 0:02:30]} 13. Nd5 {[%emt 0:00:30]} Nxd5 {[%emt 0:00:30]} 14. exd5 {[%emt 0:00:00]} e4 {[%emt 0:17:30]} 15. Qxe4 {[%emt 0:00:00]} O-O {[%emt 0:00:30]} 16. Nf4 {[%emt 0:04:30]} Bf6 {[%emt 0:12:30]} 17. Bd3 {[%emt 0:15:30]} Be5 {[%emt 0:01:30]} 18. Kb1 {[%emt 0:12:30]} Re8 {[%emt 0:06:30]} 19. Rhf1 {[%emt 0:03:30]} Qa5 {[%emt 0:25:17]} 20. f6 {[%emt 0:05:30]} g6 {[%emt 0:00:20]} 21. Ne6 {[%emt 0:00:30]} Ra7 {[%emt 0:01:29]} 22. Ng5 {[%emt 0:10:30]} Qa4 {[%emt 0:01:32]} 23. Qxa4 {[%emt 0:08:24]} bxa4 {[%emt 0:00:01]} 24. Rde1 {[%emt 0:00:08]} Bd7 {[%emt 0:00:17]} 25. Ne4 {[%emt 0:01:14]} Rb8 {[%emt 0:00:38]} 26. b3 {[%emt 0:01:36]} axb3 {[%emt 0:00:12]} 27. cxb3 {[%emt 0:01:56]} a5 {[%emt 0:00:08]} 28. Nc5 {[%emt 0:03:22]} Be8 {[%emt 0:00:57]} 29. Bc4 {[%emt 0:00:49]} a4 {[%emt 0:01:56]} 30. Nd3 {[%emt 0:00:14]} axb3 {[%emt 0:02:01]} 31. Bxb3 {[%emt 0:00:28]} Bxh2 {[%emt 0:01:12]} 32. Rh1 {[%emt 0:00:40]} Bb5 {[%emt 0:00:54]} 33. Rxh2 {[%emt 0:01:57]} Bxd3+ {[%emt 0:00:06]} 34. Kb2 {[%emt 0:00:02]} Bf5 {[%emt 0:00:54]} 35. Rh6 {[%emt 0:00:49]} Ra4 {[%emt 0:00:56]} 36. Rhh1 {[%emt 0:03:46]} h5 {[%emt 0:01:53]} 37. Re2 {[%emt 0:01:04]} Rg4 {[%emt 0:00:35]} 38. Rhe1 {[%emt 0:00:03]} g5 {[%emt 0:00:13]} 39. Ka3 {[%emt 0:03:54]} h4 {[%emt 0:00:21]} 40. Rf2 {[%emt 0:01:07]} Bg6 {[%emt 0:00:48]} 41. Re7 {[%emt 0:31:20]} Kh7 {[%emt 0:33:53]} 42. Rd7 {[%emt 0:00:34]} Rb6 {[%emt 0:00:30]} 43. Re2 {[%emt 0:01:31]} Rf4 {[%emt 0:00:00]} 44. Re6 {[%emt 0:00:00]} Ra6+ {[%emt 0:00:00]} 45. Kb2 {[%emt 0:00:00]} Rf2+ {[%emt 0:00:00]} 46. Kc3 {[%emt 0:00:00]} Rxg2 {[%emt 0:00:00]} 47. Re1 {[%emt 0:00:00]} g4 {[%emt 0:00:00]} 48. Rd8 {[%emt 0:00:00]} h3 {[%emt 0:00:00]} 49. Ree8 {[%emt 0:00:00]} Kh6 {[%emt 0:00:00]} 50. Rg8 {[%emt 0:00:00]} Kg5 {[%emt 0:00:00]} 51. Bc4 {[%emt 0:00:00]} 0-1

[Event "ESTCC 65 2019"]
[Site "Mali Losinj"]
[Date "2019.09.26"]
[Round "9.4"]
[White "Pushkov, Nikolai"]
[Black "Schrickx, Frank"]
[Result "1-0"]
[ECO "D36"]
[WhiteElo "2261"]
[BlackElo "1813"]
[Annotator "NA"]
[PlyCount "71"]
[EventDate "2019.09.18"]
[EventType "team-tourn"]
[EventCountry "CRO"]
[SourceTitle "playchess.com"]
[Source "ChessBase"]
[SourceQuality "1"]
[WhiteTeam "Russia"]
[BlackTeam "Belgium"]
[WhiteTeamCountry "RUS"]
[BlackTeamCountry "BEL"]
[TimeControl "40/5400+30:1800+30"]

1. d4 {[%emt 0:00:30]} d5 {[%emt 0:00:30]} 2. Nf3 {[%emt 0:00:00]} Nf6 {[%emt 0:00:00]} 3. c4 {[%emt 0:00:00]} e6 {[%emt 0:00:00]} 4. Nc3 {[%emt 0:00:30]} Nbd7 {[%emt 0:01:30]} 5. Bg5 {[%emt 0:00:30]} c6 {[%emt 0:00:30]} 6. cxd5 {[%emt 0:00:30]} exd5 {[%emt 0:01:30]} 7. e3 {[%emt 0:00:30]} Be7 {[%emt 0:01:30]} 8. Bd3 {[%emt 0:00:30]} O-O {[%emt 0:03:30]} 9. Qc2 {[%emt 0:00:30]} Re8 {[%emt 0:00:30]} 10. O-O {[%emt 0:00:30]} Nf8 {[%emt 0:01:30]} 11. Rab1 {[%emt 0:01:30]} a6 {[%emt 0:09:30]} 12. b4 {[%emt 0:00:30]} N6d7 {[%emt 0:05:30]} 13. Bxe7 {[%emt 0:01:30]} Qxe7 {[%emt 0:00:30]} 14. a4 {[%emt 0:00:30]} b5 {[%emt 0:17:30]} 15. a5 {[%emt 0:01:30]} Bb7 {[%emt 0:01:30]} 16. Rfe1 {[%emt 0:03:30]} Nf6 {[%emt 0:06:30]} 17. Ne5 {[%emt 0:03:30]} g6 {[%emt 0:02:30]} 18. Na2 {[%emt 0:03:30]} Rac8 {[%emt 0:02:30]} 19. f3 {[%emt 0:02:30]} N8d7 {[%emt 0:00:30]} 20. Nxd7 {[%emt 0:00:30]} Qxd7 {[%emt 0:01:30]} 21. Nc1 {[%emt 0:00:30]} Qd6 {[%emt 0:01:30]} 22. Nb3 {[%emt 0:00:30]} Nd7 {[%emt 0:01:30]} 23. Qc3 {[%emt 0:00:30]} f5 {[%emt 0:01:30]} 24. Rbc1 {[%emt 0:04:30]} Re6 {[%emt 0:02:30]} 25. e4 {[%emt 0:04:30]} fxe4 {[%emt 0:01:30]} 26. fxe4 {[%emt 0:00:30]} dxe4 {[%emt 0:00:30]} 27. Rxe4 {[%emt 0:00:30]} Rce8 {[%emt 0:03:30]} 28. Rce1 {[%emt 0:00:30]} Rxe4 {[%emt 0:00:30]} 29. Rxe4 {[%emt 0:06:30]} Rxe4 {[%emt 0:02:30]} 30. Bxe4 {[%emt 0:00:00]} Qf4 {[%emt 0:02:30]} 31. Bf3 {[%emt 0:02:00]} Qf5 {[%emt 0:01:30]} 32. h3 {[%emt 0:00:30]} Nf6 {[%emt 0:05:30]} 33. Nc5 {[%emt 0:01:30]} Bc8 {[%emt 0:03:17]} 34. Bxc6 {[%emt 0:07:30]} Qb1+ {[%emt 0:02:03]} 35. Kh2 {[%emt 0:00:30]} Bf5 {[%emt 0:02:55]} 36. Qb3+ {[%emt 0:00:30]} 1-0